fUSD/lending_fUSD_20250505
["ID","MTS","AMOUNT","RATE_DAILY","PERIOD"]
[359979364,1746460242954,-450.0,0.00019846,2]
[359979365,1746460242963,-450.0,0.00019846,2]
[359979366,1746460242973,-450.0,0.00019846,2]
[359979367,1746460242982,-450.0,0.00019846,2]
[359979368,1746460242992,-245.54,0.00019846,2]
[359979369,1746460243002,-1414.54,0.00019846,2]
[359979370,1746460243011,-450.0,0.00019846,2]
[359979371,1746460243020,-450.0,0.00019846,2]
[359979373,1746460243029,-450.0,0.00019846,2]
[359979374,1746460243038,-450.0,0.00019846,2]
[359979375,1746460243048,-450.0,0.00019846,2]
[359979376,1746460243061,-450.0,0.00019846,2]
[359979377,1746460243070,-1035.33,0.00019846,2]
[359979378,1746460243079,-450.0,0.00019846,2]
[359979379,1746460243089,-450.0,0.00019846,2]
[359979380,1746460243098,-450.0,0.00019846,2]
[359979381,1746460243108,-556.19725172,0.00019849,2]
[359979382,1746460243116,-525.7354234,0.00019849,2]
[359979383,1746460243127,-3679.381183,0.00019853,2]
[359979384,1746460243136,-581.18,0.00019854,2]
[359979385,1746460243146,-450.0,0.00019854,2]
[359979386,1746460243155,-198.51188841,0.00019854,2]
[359979387,1746460243164,-500.0,0.00019854,2]
[359979388,1746460243174,-500.0,0.00019854,2]
[359979389,1746460243183,-167.38683983,0.00019854,2]
[359979390,1746460243193,-500.0,0.00019854,2]
[359979391,1746460243202,-500.0,0.00019854,2]
[359979392,1746460243212,-500.0,0.00019854,2]
[359979393,1746460243221,-500.0,0.00019854,2]
[359979394,1746460243230,-44401.97,0.00019854,2]
[359979395,1746460243240,-450.0,0.00019854,2]
[359979396,1746460243249,-458.65,0.00019854,2]
[359979397,1746460243258,-450.0,0.00019854,2]
[359979398,1746460243268,-450.0,0.00019854,2]
[359979399,1746460243277,-1680.46,0.00019854,2]
[359979400,1746460243286,-450.0,0.00019854,2]
[359979401,1746460243296,-450.0,0.00019854,2]
[359979402,1746460243305,-450.0,0.00019854,2]
[359979403,1746460243315,-450.0,0.00019854,2]
[359979404,1746460243324,-450.0,0.00019854,2]
[359979405,1746460243335,-458.44,0.00019854,2]
[359979406,1746460243344,-230.68534944,0.00019854,2]
[359979407,1746460243387,-322.22465056,0.00019854,2]
[359979408,1746460243397,-450.0,0.00019854,2]
[359979409,1746460243406,-1414.54,0.00019854,2]
[359979410,1746460243415,-257.48,0.00019854,2]
[359979411,1746460243424,-450.0,0.00019854,2]
[359979412,1746460243433,-450.0,0.00019854,2]
[359979413,1746460243443,-1035.33,0.00019854,2]
[359979414,1746460243453,-450.0,0.00019854,2]
[359979415,1746460243462,-450.0,0.00019854,2]
[359979416,1746460243472,-530.95,0.00019855,2]
[359979417,1746460243482,-1460.19,0.00019855,2]
[359979418,1746460243492,-1460.19,0.00019855,2]
[359979419,1746460243501,-450.0,0.00019855,2]
[359979420,1746460243511,-480.43,0.00019855,2]
[359979421,1746460243521,-450.0,0.00019855,2]
[359979422,1746460243530,-330.3939409,0.00019855,2]
[359979423,1746460243546,-119.6060591,0.00019855,2]
[359979424,1746460243556,-450.0,0.00019855,2]
[359979425,1746460243565,-450.0,0.00019855,2]
[359979426,1746460243575,-450.0,0.00019855,2]
[359979427,1746460243585,-450.0,0.00019855,2]
[359979428,1746460243595,-450.0,0.00019855,2]
[359979429,1746460243604,-450.0,0.00019855,2]
[359979430,1746460243615,-450.0,0.00019855,2]
[359979431,1746460243625,-336.72,0.00019855,2]
[359979432,1746460243635,-450.0,0.00019855,2]
[359979433,1746460243644,-450.0,0.00019855,2]
[359979434,1746460243654,-469.53960709,0.00019855,2]
[359979435,1746460243664,-450.0,0.00019855,2]
[359979436,1746460243673,-450.0,0.00019855,2]
[359979437,1746460243683,-450.0,0.00019855,2]
[359979438,1746460243692,-450.0,0.00019855,2]
[359979439,1746460243702,-450.0,0.00019855,2]
[359979440,1746460243711,-450.0,0.00019855,2]
[359979441,1746460243722,-450.0,0.00019855,2]
[359979442,1746460243732,-450.0,0.00019855,2]
[359979443,1746460243742,-450.0,0.00019855,2]
[359979444,1746460243752,-282.56,0.00019855,2]
[359979445,1746460243761,-450.0,0.00019855,2]
[359979446,1746460243771,-450.0,0.00019855,2]
[359979447,1746460243781,-450.0,0.00019855,2]
[359979448,1746460243791,-450.0,0.00019855,2]
[359979449,1746460243800,-450.0,0.00019855,2]
[359979450,1746460243809,-170.4446236,0.00019855,2]
[359979451,1746460243854,-450.0,0.00019845,2]
[359979452,1746460243863,-77.55520127,0.00019855,2]
[359979454,1746460244021,-450.0,0.00019854,2]
[359979456,1746460244031,-234.68303263,0.00019855,2]
[359979458,1746460244041,-450.0,0.00019855,2]
[359979460,1746460244050,-572.82072867,0.00019855,2]
[359979462,1746460244064,-450.0,0.00019855,2]
[359979464,1746460244074,-450.0,0.00019855,2]
[359979466,1746460244084,-450.0,0.00019855,2]
[359979468,1746460244094,-450.0,0.00019855,2]
[359979470,1746460244105,-450.0,0.00019855,2]
[359979471,1746460244114,-450.0,0.00019855,2]
[359979473,1746460244123,-450.0,0.00019855,2]
[359979474,1746460244134,-450.0,0.00019855,2]
[359979475,1746460244143,-450.0,0.00019855,2]
[359979476,1746460244152,-450.0,0.00019855,2]
[359979477,1746460244161,-450.0,0.00019855,2]
[359979478,1746460244170,-450.0,0.00019855,2]
[359979479,1746460244180,-450.0,0.00019855,2]
[359979480,1746460244189,-450.0,0.00019855,2]
[359979481,1746460244197,-450.0,0.00019855,2]
[359979482,1746460244207,-450.0,0.00019855,2]
[359979483,1746460244215,-272.12144169,0.00019855,2]
[359979484,1746460244389,-177.87855831,0.00019855,2]
[359979485,1746460244399,-450.0,0.00019855,2]
[359979486,1746460244408,-481.67778694,0.00019855,2]
[359979487,1746460244418,-450.0,0.00019855,2]
[359979488,1746460244427,-566.84,0.00019855,2]
[359979489,1746460244436,-566.84,0.00019855,2]
[359979490,1746460244445,-450.0,0.00019855,2]
[359979491,1746460244454,-450.0,0.00019855,2]
[359979492,1746460244463,-44.21825475,0.00019855,2]
[359979493,1746460244480,-536.96174525,0.00019855,2]
[359979494,1746460244489,-450.0,0.00019855,2]
[359979495,1746460244498,-581.18,0.00019855,2]
[359979496,1746460244507,-450.0,0.00019855,2]
[359979497,1746460244516,-159.60441627,0.00019855,2]
[359979498,1746460244533,-290.39558373,0.00019855,2]
[359979499,1746460244542,-450.0,0.00019855,2]
[359979500,1746460244551,-450.0,0.00019855,2]
[359979501,1746460244560,-450.0,0.00019855,2]
[359979502,1746460244569,-450.0,0.00019855,2]
[359979503,1746460244578,-450.0,0.00019855,2]
[359979504,1746460244588,-450.0,0.00019855,2]
[359979505,1746460244597,-450.0,0.00019855,2]
[359979506,1746460244606,-450.0,0.00019855,2]
[359979507,1746460244615,-450.0,0.00019855,2]
[359979508,1746460244625,-469.35668121,0.00019855,2]
[359979509,1746460244634,-450.0,0.00019855,2]
[359979510,1746460244643,-450.0,0.00019855,2]
[359979511,1746460244653,-450.0,0.00019855,2]
[359979512,1746460244662,-286.45126402,0.00019855,2]
[359979513,1746460244672,-450.0,0.00019855,2]
[359979514,1746460244681,-450.0,0.00019855,2]
[359979515,1746460244690,-450.0,0.00019855,2]
[359979516,1746460244700,-450.0,0.00019855,2]
[359979517,1746460244709,-450.0,0.00019855,2]
[359979518,1746460244718,-450.0,0.00019855,2]
[359979519,1746460244728,-450.0,0.00019855,2]
[359979520,1746460244738,-450.0,0.00019855,2]
[359979521,1746460244747,-450.0,0.00019855,2]
[359979522,1746460244757,-226.72,0.00019855,2]
[359979523,1746460244767,-450.0,0.00019855,2]
[359979524,1746460244776,-599.46987438,0.00019855,2]
[359979525,1746460244785,-450.0,0.00019855,2]
[359979526,1746460244795,-450.0,0.00019855,2]
[359979527,1746460244804,-691.03,0.00019855,2]
[359979528,1746460244814,-691.03,0.00019855,2]
[359979529,1746460244823,-450.0,0.00019855,2]
[359979530,1746460244833,-450.0,0.00019855,2]
[359979531,1746460244843,-450.0,0.00019855,2]
[359979532,1746460244852,-450.0,0.00019855,2]
[359979533,1746460244861,-450.0,0.00019855,2]
[359979534,1746460244871,-450.0,0.00019855,2]
[359979535,1746460244881,-533.04,0.00019855,2]
[359979536,1746460244891,-533.04,0.00019855,2]
[359979537,1746460244900,-450.0,0.00019855,2]
[359979538,1746460244910,-450.0,0.00019855,2]
[359979539,1746460244920,-450.0,0.00019855,2]
[359979540,1746460244930,-450.0,0.00019855,2]
[359979541,1746460244939,-450.0,0.00019855,2]
[359979542,1746460244949,-450.0,0.00019855,2]
[359979543,1746460244958,-450.0,0.00019855,2]
[359979544,1746460244968,-450.0,0.00019855,2]
[359979545,1746460244978,-450.0,0.00019855,2]
[359979546,1746460244987,-450.0,0.00019855,2]
[359979547,1746460244997,-450.0,0.00019855,2]
[359979548,1746460245006,-450.0,0.00019855,2]
[359979549,1746460245015,-450.0,0.00019855,2]
[359979550,1746460245025,-450.0,0.00019855,2]
[359979551,1746460245035,-450.0,0.00019855,2]
[359979552,1746460245049,-878.05,0.00019855,2]
[359979553,1746460245062,-878.05,0.00019855,2]
[359979554,1746460245072,-324.84612389,0.00019855,2]
[359979555,1746460245082,-450.0,0.00019855,2]
[359979556,1746460245091,-450.0,0.00019855,2]
[359979557,1746460245101,-450.0,0.00019855,2]
[359979558,1746460245110,-450.0,0.00019855,2]
[359979559,1746460245120,-454.33,0.00019855,2]
[359979560,1746460245130,-305.46,0.00019855,2]
[359979561,1746460245139,-450.0,0.00019855,2]
[359979562,1746460245150,-450.0,0.00019855,2]
[359979563,1746460245159,-450.0,0.00019855,2]
[359979564,1746460245169,-450.0,0.00019855,2]
[359979565,1746460245178,-450.0,0.00019855,2]
[359979566,1746460245188,-450.0,0.00019855,2]
[359979567,1746460245198,-450.0,0.00019855,2]
[359979568,1746460245207,-450.0,0.00019855,2]
[359979569,1746460245216,-450.0,0.00019855,2]
[359979570,1746460245226,-450.0,0.00019855,2]
[359979571,1746460245236,-450.0,0.00019855,2]
[359979572,1746460245246,-450.0,0.00019855,2]
[359979573,1746460245255,-450.0,0.00019855,2]
[359979574,1746460245264,-450.0,0.00019855,2]
[359979575,1746460245274,-450.0,0.00019855,2]
[359979576,1746460245283,-450.0,0.00019855,2]
[359979577,1746460245293,-450.0,0.00019855,2]
[359979578,1746460245302,-450.0,0.00019855,2]
[359979579,1746460245311,-645.34,0.00019855,2]
[359979580,1746460245321,-645.34,0.00019855,2]
[359979581,1746460245331,-450.0,0.00019855,2]
[359979582,1746460245340,-450.0,0.00019855,2]
[359979583,1746460245350,-547.25,0.00019855,2]
[359979584,1746460245360,-547.25,0.00019855,2]
[359979585,1746460245370,-450.0,0.00019855,2]
[359979586,1746460245379,-487.18,0.00019855,2]
[359979587,1746460245389,-450.0,0.00019855,2]
[359979588,1746460245399,-450.0,0.00019855,2]
[359979589,1746460245408,-450.0,0.00019855,2]
[359979590,1746460245417,-450.0,0.00019855,2]
[359979591,1746460245427,-450.0,0.00019855,2]
[359979592,1746460245437,-487.14,0.00019855,2]
[359979593,1746460245446,-450.0,0.00019855,2]
[359979594,1746460245456,-450.0,0.00019855,2]
[359979595,1746460245466,-2751.55,0.00019855,2]
[359979596,1746460245478,-2751.55,0.00019855,2]
[359979597,1746460245490,-450.0,0.00019855,2]
[359979598,1746460245500,-450.0,0.00019855,2]
[359979599,1746460245510,-2462.54,0.00019855,2]
[359979600,1746460245519,-450.0,0.00019855,2]
[359979601,1746460245528,-450.0,0.00019855,2]
[359979602,1746460245537,-450.0,0.00019855,2]
[359979603,1746460245547,-450.0,0.00019855,2]
[359979604,1746460245556,-450.0,0.00019855,2]
[359979605,1746460245566,-450.0,0.00019855,2]
[359979606,1746460245575,-2571.48,0.00019855,2]
[359979607,1746460245584,-489.98549927,0.00019855,2]
[359979608,1746460245594,-450.0,0.00019855,2]
[359979609,1746460245603,-450.0,0.00019855,2]
[359979610,1746460245612,-2553.16,0.00019855,2]
[359979611,1746460245622,-450.0,0.00019855,2]
[359979612,1746460245632,-239.05,0.00019855,2]
[359979613,1746460245642,-450.0,0.00019855,2]
[359979614,1746460245652,-465.68,0.00019855,2]
[359979615,1746460245662,-655.77,0.00019855,2]
[359979616,1746460245672,-655.77,0.00019855,2]
[359979617,1746460245681,-2266.64,0.00019855,2]
[359979618,1746460245691,-18859.11071956,0.00019855,2]
[359979619,1746460245704,-1167.51,0.00019855,2]
[359979620,1746460245721,-1270.79128741,0.00019855,2]
[359979627,1746460246128,-424.387078,0.00019855,2]
[359979628,1746460246141,-2734.91860751,0.00019855,2]
[359979629,1746460246181,-31086.49230752,0.00019855,2]
[359979630,1746460246190,-450.0,0.00019855,2]
[359979631,1746460246199,-500.0,0.00019855,2]
[359979632,1746460246208,-500.0,0.00019855,2]
[359979633,1746460246217,-450.0,0.00019855,2]
[359979634,1746460246228,-450.0,0.00019855,2]
[359979635,1746460246237,-450.0,0.00019855,2]
[359979636,1746460246246,-450.0,0.00019855,2]
[359979637,1746460246255,-500.0,0.00019855,2]
[359979638,1746460246264,-500.0,0.00019855,2]
[359979639,1746460246273,-1839.59,0.00019855,2]
[359979640,1746460246282,-8208.91,0.00019855,2]
[359979641,1746460246291,-500.0,0.00019855,2]
[359979642,1746460246300,-500.0,0.00019855,2]
[359979643,1746460246310,-450.0,0.00019855,2]
[359979644,1746460246318,-450.0,0.00019855,2]
[359979645,1746460246328,-450.0,0.00019855,2]
[359979646,1746460246338,-44401.97,0.00019855,2]
[359979647,1746460246346,-2176.73030887,0.00019855,2]
[359979648,1746460246358,-3097.4849216,0.00019855,2]
[359979649,1746460246404,-1720.63035708,0.00019855,2]
[359979650,1746460246414,-563.92912548,0.00019855,2]
[359979651,1746460246425,-1044.29963189,0.00019855,2]
[359979652,1746460246461,-5030.65055664,0.00019855,2]
[359979653,1746460246473,-18944.2128,0.00019855,2]
[359979654,1746460246484,-1734.44,0.00019855,2]
[359979663,1746460251449,200.0,0.0003,30]
[359979664,1746460253304,200.0,0.00018887,2]
[359979665,1746460295800,169.11597,0.0002961,30]
[359979666,1746460297222,169.11597,0.0002925,60]
[359979667,1746460297551,169.11597,0.00017471,7]
[359979668,1746460316485,2446.04,0.00018875,2]
[359979671,1746460395307,1465.93,0.0001887,2]
[359979675,1746460415079,2528.3700221,0.0003,30]
[359979676,1746460451618,1837.49,0.00018867,2]
[359979677,1746460487906,250.0,0.00017,2]
[359979678,1746460488981,300.0,0.00019,2]
[359979680,1746460506764,1973.93,0.0003013,120]
[359979681,1746460551491,200.0,0.0003,30]
[359979682,1746460615030,3000.0,0.00027397,120]
[359979683,1746460615289,3000.0,0.00027397,120]
[359979684,1746460615510,3000.0,0.00027397,120]
[359979685,1746460615776,3000.0,0.00027397,120]
[359979686,1746460616000,3000.0,0.00027397,120]
[359979687,1746460616243,3000.0,0.00027397,120]
[359979688,1746460616488,3000.0,0.00027397,120]
[359979689,1746460616724,1947.63,0.00027397,120]
[359979691,1746460795518,500.0,0.00019845,120]
[359979692,1746460795746,500.0,0.00019854,120]
[359979693,1746460795988,500.0,0.00019855,120]
[359979694,1746460796247,500.0,0.00019855,120]
[359979695,1746460796473,613.43491597,0.00019856,120]
[359979696,1746460851554,200.0,0.0003,30]
[359979697,1746460886561,443.56,0.00019457,2]
[359979698,1746460893493,691.5193551,0.00019479,2]
[359979699,1746460907605,2849.22,0.00018778,2]
[359979700,1746460998062,250.0,0.00018773,2]
[359979701,1746461024363,166.35,0.00019353,2]
[359979702,1746461057153,1000.0,0.00018789,2]
[359979703,1746461068185,267.42411942,0.0003,30]
[359979704,1746461073379,292.0,0.00019,2]
[359979705,1746461143712,3000.0,0.0003,30]
[359979706,1746461151618,200.0,0.0003,30]
[359979716,1746461166518,906.22,0.0003,30]
[359979717,1746461178993,777.29,0.0001686,2]
[359979718,1746461179208,777.29,0.00019124,2]
[359979731,1746461341111,414.04536882,0.0003,30]
[359979909,1746461387934,1347.02,0.00018795,2]
[359979910,1746461388648,1347.02,0.00025843,120]
[359979911,1746461388898,1347.02,0.00028193,120]
[359979912,1746461405294,401.61452519,0.000195,2]
[359979913,1746461409870,625.6158687,0.00030136,120]
[359979921,1746461432459,-151.0,0.00019555,2]
[359979922,1746461432469,-814.42,0.00019555,2]
[359979923,1746461432479,-200.0,0.00019556,2]
[359979924,1746461432488,-250.0,0.00019556,2]
[359979925,1746461432497,-162.88,0.00019556,2]
[359979926,1746461432507,-401.61452517,0.00019573,2]
[359979927,1746461432516,-200.0,0.00019582,2]
[359979928,1746461432526,-200.0,0.000196,2]
[359979929,1746461432536,-401.61452517,0.00019645,2]
[359979930,1746461432546,-207.4,0.00019723,2]
[359979931,1746461432555,-434.2931455,0.0001973,2]
[359979932,1746461432564,-151.0,0.00019731,2]
[359979933,1746461432573,-668.65185757,0.00019731,2]
[359979934,1746461432582,-773.38590404,0.00019733,2]
[359979935,1746461432594,-351.05032044,0.00019733,2]
[359979936,1746461432603,-150.0,0.00019736,2]
[359979937,1746461432612,-841.69966299,0.00019741,2]
[359979938,1746461432645,-358.30033701,0.00019741,2]
[359979939,1746461432655,-300.0,0.00019741,2]
[359979940,1746461432665,-706.1829615,0.00019742,2]
[359979941,1746461432674,-300.0,0.00019742,2]
[359979942,1746461432683,-300.0,0.00019742,2]
[359979943,1746461432693,-2649.55168179,0.00019743,2]
[359979969,1746461440215,-977.75559804,0.00019743,2]
[359979974,1746461440485,-40552.48364917,0.00019743,2]
[359979975,1746461440495,-226.4288,0.00019744,2]
[359979976,1746461440505,-183.2247,0.00019745,2]
[359979977,1746461440515,-3362.3963,0.00019745,2]
[359979979,1746461440524,-988.8216078,0.00019745,2]
[359979981,1746461440535,-963.0,0.00019748,2]
[359979983,1746461440544,-1152.1359,0.00019756,2]
[359979985,1746461440554,-622.93009836,0.00019762,2]
[359979986,1746461440563,-988.82160774,0.00019762,2]
[359979987,1746461440573,-622.93009836,0.00019779,2]
[359979988,1746461440582,-988.82160774,0.00019779,2]
[359979989,1746461440591,-622.93009836,0.00019797,2]
[359979990,1746461440601,-988.82160774,0.00019797,2]
[359979991,1746461440610,-3935.3145,0.00019808,2]
[359979992,1746461440619,-622.93009836,0.00019814,2]
[359979993,1746461440629,-988.82160774,0.00019814,2]
[359979994,1746461440639,-622.93009836,0.00019831,2]
[359979995,1746461440653,-988.82160774,0.00019831,2]
[359979996,1746461440662,-150.0,0.00019834,2]
[359979997,1746461440673,-213.82290557,0.00019843,2]
[359979998,1746461440682,-268.15226548,0.00019843,2]
[359979999,1746461440694,-500.0,0.00019843,2]
[359980001,1746461440703,-500.0,0.00019843,2]
[359980002,1746461440712,-500.0,0.00019843,2]
[359980003,1746461440723,-313.71479889,0.00019843,2]
[359980004,1746461440732,-41959.64236433,0.00019844,2]
[359980006,1746461440741,-535.08,0.00019844,2]
[359980008,1746461440751,-450.0,0.00019844,2]
[359980010,1746461440760,-450.0,0.00019844,2]
[359980012,1746461440769,-450.0,0.00019844,2]
[359980014,1746461440778,-585.07,0.00019844,2]
[359980016,1746461440787,-203.58666244,0.00019844,2]
[359980018,1746461440797,-450.0,0.00019844,2]
[359980020,1746461440806,-450.0,0.00019844,2]
[359980022,1746461440815,-488.94965608,0.00019844,2]
[359980024,1746461440825,-513.26624994,0.00019844,2]
[359980026,1746461440835,-450.0,0.00019844,2]
[359980028,1746461440845,-450.0,0.00019844,2]
[359980030,1746461440854,-450.0,0.00019844,2]
[359980032,1746461440864,-450.0,0.00019844,2]
[359980034,1746461440874,-2486.04,0.00019844,2]
[359980036,1746461440883,-1341.16,0.00019844,2]
[359980038,1746461440893,-450.0,0.00019844,2]
[359980040,1746461440902,-450.0,0.00019844,2]
[359980042,1746461440912,-450.0,0.00019844,2]
[359980044,1746461440921,-450.0,0.00019844,2]
[359980045,1746461440931,-602.7,0.00019844,2]
[359980047,1746461440940,-500.0,0.00019844,2]
[359980049,1746461440950,-450.0,0.00019844,2]
[359980051,1746461440959,-40210.85,0.00019844,2]
[359980053,1746461440969,-450.0,0.00019844,2]
[359980055,1746461440979,-450.0,0.00019844,2]
[359980057,1746461440988,-450.0,0.00019844,2]
[359980059,1746461440998,-500.0,0.00019844,2]
[359980061,1746461441007,-450.0,0.00019844,2]
[359980062,1746461441016,-455.68,0.00019844,2]
[359980063,1746461441025,-450.0,0.00019844,2]
[359980064,1746461441034,-450.0,0.00019844,2]
[359980065,1746461441049,-814.33,0.00019844,2]
[359980066,1746461441063,-450.0,0.00019844,2]
[359980067,1746461441076,-450.0,0.00019844,2]
[359980068,1746461441087,-2753.84,0.00019844,2]
[359980069,1746461441100,-214.80461143,0.00019844,2]
[359980070,1746461441113,-353.16523101,0.00019844,2]
[359980071,1746461441125,-450.0,0.00019844,2]
[359980072,1746461441139,-450.0,0.00019844,2]
[359980073,1746461441151,-450.0,0.00019844,2]
[359980074,1746461441164,-450.0,0.00019844,2]
[359980075,1746461441176,-450.0,0.00019844,2]
[359980077,1746461441188,-450.0,0.00019844,2]
[359980079,1746461441200,-450.0,0.00019844,2]
[359980082,1746461441214,-450.0,0.00019844,2]
[359980085,1746461441226,-644.8,0.00019844,2]
[359980087,1746461441238,-450.0,0.00019844,2]
[359980089,1746461441251,-450.0,0.00019844,2]
[359980092,1746461441264,-10555.82,0.00019844,2]
[359980094,1746461441277,-450.0,0.00019844,2]
[359980096,1746461441289,-1379.17,0.00019844,2]
[359980098,1746461441302,-1770.48,0.00019844,2]
[359980101,1746461441314,-450.0,0.00019844,2]
[359980103,1746461441325,-539.09,0.00019844,2]
[359980106,1746461441337,-450.0,0.00019844,2]
[359980109,1746461441350,-450.0,0.00019844,2]
[359980111,1746461441362,-450.0,0.00019844,2]
[359980113,1746461441375,-450.0,0.00019844,2]
[359980115,1746461441386,-450.0,0.00019844,2]
[359980118,1746461441399,-450.0,0.00019844,2]
[359980120,1746461441411,-1009.45,0.00019844,2]
[359980122,1746461441425,-577.73566048,0.00019844,2]
[359980125,1746461441437,-450.0,0.00019844,2]
[359980127,1746461441450,-450.0,0.00019844,2]
[359980129,1746461441462,-450.0,0.00019844,2]
[359980132,1746461441474,-516.74,0.00019844,2]
[359980134,1746461441487,-450.0,0.00019844,2]
[359980136,1746461441498,-450.0,0.00019844,2]
[359980138,1746461441508,-450.0,0.00019844,2]
[359980140,1746461441519,-450.0,0.00019844,2]
[359980143,1746461441531,-450.0,0.00019844,2]
[359980145,1746461441545,-450.0,0.00019844,2]
[359980147,1746461441556,-450.0,0.00019844,2]
[359980149,1746461441567,-450.0,0.00019844,2]
[359980151,1746461441577,-475.0,0.00019844,2]
[359980154,1746461441587,-450.0,0.00019844,2]
[359980156,1746461441600,-450.0,0.00019844,2]
[359980158,1746461441613,-450.0,0.00019844,2]
[359980161,1746461441626,-450.0,0.00019844,2]
[359980163,1746461441638,-450.0,0.00019844,2]
[359980165,1746461441652,-450.0,0.00019844,2]
[359980167,1746461441665,-450.0,0.00019844,2]
[359980169,1746461441676,-450.0,0.00019844,2]
[359980171,1746461441687,-450.0,0.00019844,2]
[359980174,1746461441698,-450.0,0.00019844,2]
[359980176,1746461441708,-450.0,0.00019844,2]
[359980178,1746461441720,-450.0,0.00019844,2]
[359980180,1746461441733,-450.0,0.00019845,2]
[359980182,1746461441744,-450.0,0.00019845,2]
[359980185,1746461441755,-450.0,0.00019845,2]
[359980187,1746461441766,-450.0,0.00019845,2]
[359980189,1746461441777,-387.018064,0.00019845,2]
[359980191,1746461441788,-450.0,0.00019845,2]
[359980193,1746461441798,-450.0,0.00019845,2]
[359980196,1746461441810,-470.0,0.00019845,2]
[359980198,1746461441821,-450.0,0.00019845,2]
[359980200,1746461441832,-450.0,0.00019845,2]
[359980202,1746461441843,-450.0,0.00019845,2]
[359980204,1746461441854,-450.0,0.00019845,2]
[359980206,1746461441866,-450.0,0.00019845,2]
[359980209,1746461441877,-450.0,0.00019845,2]
[359980211,1746461441888,-569.93,0.00019845,2]
[359980213,1746461441899,-462.2875545,0.00019845,2]
[359980215,1746461441910,-450.0,0.00019845,2]
[359980217,1746461441923,-450.0,0.00019845,2]
[359980219,1746461441934,-450.0,0.00019845,2]
[359980222,1746461441946,-501.52926627,0.00019845,2]
[359980224,1746461441957,-450.0,0.00019845,2]
[359980226,1746461441968,-450.0,0.00019845,2]
[359980228,1746461441979,-450.0,0.00019845,2]
[359980230,1746461441990,-450.0,0.00019845,2]
[359980232,1746461442005,-184.83002268,0.00019845,2]
[359980234,1746461442016,-450.0,0.00019845,2]
[359980237,1746461442027,-450.0,0.00019845,2]
[359980239,1746461442038,-450.0,0.00019845,2]
[359980241,1746461442049,-450.0,0.00019845,2]
[359980243,1746461442060,-450.0,0.00019845,2]
[359980245,1746461442071,-450.0,0.00019845,2]
[359980247,1746461442083,-450.0,0.00019845,2]
[359980249,1746461442094,-485.16,0.00019845,2]
[359980252,1746461442105,-485.16,0.00019845,2]
[359980254,1746461442116,-450.0,0.00019845,2]
[359980256,1746461442127,-450.0,0.00019845,2]
[359980258,1746461442138,-450.0,0.00019845,2]
[359980260,1746461442150,-450.0,0.00019845,2]
[359980262,1746461442161,-450.0,0.00019845,2]
[359980265,1746461442174,-450.0,0.00019845,2]
[359980267,1746461442185,-450.0,0.00019845,2]
[359980269,1746461442196,-450.0,0.00019845,2]